Workbook

Sheet Лист1
A2: Расчет иных трансфертов 2020-2022 годы
A4: Факт 9 мес 28768:9*12=38357т.р. Факт числ-ть 84 чел. Расходы на 1 чел 457 т.р.
D7: 2019 год | M7: 2020 год | U7: 2021 год | AC7: 2022 год
A8: № п/п | B8: Наименование поселений | C8: Численность населения на 01.01.2018 | D8: ИМТ на ОКС (1 шт. ед) | E8: ИМТ на КУМИ (1 шт ед) | F8: ИМТ на ГО и ЧС (10% от расходов на 1 шт ед) | G8: ИМТ на осуществление мер по противодействию коррупции в границах поселения (10% от расходов на 1 шт ед) | H8: ИМТ на Упр фин (2 шт ед) | I8: ИМТ на культуру | J8: Субсидия в областной бюджет из местного бюджета | K8: Итого 2019 | L8: Численность населения на 01.01.2019 | M8: ИМТ на ОКС (1 шт. ед) | N8: ИМТ на КУМИ (1 шт ед) | O8: ИМТ на ГО и ЧС (10% от расходов на 1 шт ед) | P8: ИМТ осуществление мер по противодействию коррупции в границах поселения (10% от расходов на 1 шт ед) | Q8: ИМТ на Упр фин (2 шт ед) | R8: ИМТ на культуру | S8: Субсидия в областной бюджет из местного бюджета | T8: Итого 2020 | U8: ИМТ на ОКС (1 шт. ед) | V8: ИМТ на КУМИ (1 шт ед) | W8: ИМТ на ГО и ЧС (10% от расходов на 1 шт ед) | X8: ИМТ осуществление мер по противодействию коррупции в границах поселения (10% от расходов на 1 шт ед) | Y8: ИМТ на Упр фин (2 шт ед) | Z8: ИМТ на культуру | AA8: Субсидия в областной бюджет из местного бюджета | AB8: Итого 2021 | AC8: ИМТ на ОКС (1 шт. ед) | AD8: ИМТ на КУМИ (1 шт ед) | AE8: ИМТ на ГО и ЧС (10% от расходов на 1 шт ед) | AF8: ИМТ осуществление мер по противодействию коррупции в границах поселения (10% от расходов на 1 шт ед) | AG8: ИМТ на Упр фин (2 шт ед) | AH8: ИМТ на культуру | AI8: Субсидия в областной бюджет из местного бюджета | AJ8: Итого 2021
A9: 1 | B9: Поселковая адм | C9: 4776 | D9: 274 | E9: 274 | F9: =C9*451/7809*0.1 -> 28 | G9: =C9*451/7809*0.1 -> 28 | H9: =C9*451/7809*2 -> 552 | I9: =C9*21694700/7809/1000 -> 13268.5 | K9: =SUM(D9:J9) -> 14424.5 | L9: 4680 | M9: =457*L9/7640 -> 279.9 | N9: =457*L9/7640 -> 279.9 | O9: =L9*45.7/7640 -> 28 | P9: =45.7*L9/7640 -> 28 | Q9: =L9*914/7640 -> 559.9 | R9: =L9*23371.2/7640 -> 14316.4 | T9: =SUM(M9:S9) -> 15492.1 | U9: =M9 -> 279.9 | V9: 279.9 | W9: 28 | X9: 28 | Y9: 559.9 | Z9: 14316.4 | AB9: =SUM(U9:AA9) -> 15492.1 | AC9: =U9 -> 279.9 | AD9: =V9 -> 279.9 | AE9: =W9 -> 28 | AF9: =X9 -> 28 | AG9: =Y9 -> 559.9 | AH9: =Z9 -> 14316.4 | AJ9: =SUM(AC9:AI9) -> 15492.1
A10: 2 | B10: Бердниковская с/а | C10: 859 | D10: =C10*451/7809 -> 50 | E10: =C10*451/7809 -> 50 | G10: =C10*451/7809*0.1 -> 5 | H10: 98 | I10: =C10*21694700/7809/1000 -> 2386.4 | K10: =SUM(D10:J10) -> 2589.4 | L10: 839 | M10: =457*L10/7640 -> 50.2 | N10: =457*L10/7640 -> 50.2 | O10: =F10 -> 0 | P10: =45.7*L10/7640 -> 5 | Q10: =L10*914/7640 -> 100.4 | R10: =L10*23371.2/7640 -> 2566.5 | T10: =SUM(M10:S10) -> 2772.3 | U10: =M10 -> 50.2 | V10: =N10 -> 50.2 | W10: =O10 -> 0 | X10: =P10 -> 5 | Y10: =Q10 -> 100.4 | Z10: =R10 -> 2566.5 | AB10: =SUM(U10:AA10) -> 2772.3 | AC10: 50.2 | AD10: 50.2 | AE10: 0 | AF10: 5 | AG10: 100.4 | AH10: 2566.5 | AJ10: =SUM(AC10:AI10) -> 2772.3
A11: 3 | B11: Вязовская с/а | C11: 739 | D11: 43 | E11: 43 | G11: 4 | H11: =C11*451/7809*2 -> 85 | I11: 2053.1 | K11: 2228.1 | L11: 718 | M11: 42.9 | N11: 42.9 | O11: 0 | P11: 4.3 | Q11: 85.9 | R11: 2196.4 | T11: 2372.4 | U11: 42.9 | V11: 42.9 | W11: 0 | X11: 4.3 | Y11: 85.9 | Z11: 2196.4 | AB11: 2372.4 | AC11: 42.9 | AD11: 42.9 | AE11: 0 | AF11: 4.3 | AG11: 85.9 | AH11: 2196.4 | AJ11: 2372.4
A12: 4 | B12: Пакалевская с/а | C12: 617 | D12: 36 | E12: 36 | G12: 4 | H12: =C12*451/7809*2 -> 71 | I12: 1714.1 | J12: 34.1 | K12: 1895.2 | L12: 590 | M12: 35.3 | N12: 35.3 | O12: 0 | P12: 3.5 | Q12: 70.6 | R12: 1804.8 | S12: 174.4 | T12: 2123.9 | U12: 35.3 | V12: 35.3 | W12: 0 | X12: 3.5 | Y12: 70.6 | Z12: 1804.8 | AB12: 1949.5 | AC12: 35.3 | AD12: 35.3 | AE12: 0 | AF12: 3.5 | AG12: 70.6 | AH12: 1804.8 | AJ12: 1949.5
A13: 5 | B13: Б.Содомовская с/а | C13: 818 | D13: 47 | E13: 47 | G13: 5 | H13: =C13*451/7809*2 -> 94 | I13: 2272.6 | K13: 2465.6 | L13: 813 | M13: 48.7 | N13: 48.7 | O13: 0 | P13: 4.9 | Q13: 97.2 | R13: 2487.1 | T13: 2686.6 | U13: 48.7 | V13: 48.7 | W13: 0 | X13: 4.9 | Y13: 97.2 | Z13: 2487.1 | AB13: 2686.6 | AC13: 48.7 | AD13: 48.7 | AE13: 0 | AF13: 4.9 | AG13: 97.2 | AH13: 2487.1 | AJ13: 2686.6
B14: ИТОГО на 2019 год | C14: =SUM(C9:C13) -> 7809 | D14: 450 | E14: 450 | F14: 28 | G14: 46 | H14: 900 | I14: 21694.7 | J14: 34.1 | K14: 23602.8 | L14: =SUM(L9:L13) -> 7640 | M14: =SUM(M9:M13) -> 457 | N14: 457 | O14: 28 | P14: 45.7 | Q14: 914 | R14: 23371.2 | S14: 174.4 | T14: 25447.3 | U14: 457 | V14: 457 | W14: 28 | X14: 45.7 | Y14: 914 | Z14: 23371.2 | AA14: 0 | AB14: 25272.9 | AC14: =SUM(AC9:AC13) -> 457 | AD14: 457 | AE14: 28 | AF14: 45.7 | AG14: 914 | AH14: 23371.2 | AI14: 0 | AJ14: 25272.9
M15: 457 | N15: 457 | O15: 45.7 | P15: 45.7 | Q15: 914 | R15: 23371.2 | T15: =SUM(M15:S15) -> 25290.6
B16: в том числе заработная плата и начисления 2019 год | D16: =D14 -> 450 | E16: =E14 -> 450 | F16: 28 | G16: 46 | H16: 900 | I16: 17023.9 | K16: =SUM(D16:J16) -> 18897.9 | M16: =M14 -> 457 | N16: =N14 -> 457 | O16: 28 | P16: 45.7 | Q16: 914 | R16: 17889.6
B17: 2018 год | D17: 443 | E17: 443 | F17: 26.7 | H17: 886 | I17: 19696.3 | J17: 205.4 | K17: =SUM(D17:J17) -> 21700.4
B18: 2017 год | D18: 449 | E18: 449 | F18: 27 | H18: 895 | I18: 17667.7 | J18: 15.6 | K18: =SUM(D18:J18) -> 19503.3
B19: 2016 год | D19: 442 | E19: 442 | F19: 44 | H19: 884 | I19: 0 | J19: 0 | K19: =H19+E19+D19+F19 -> 1812
B20: Рост 2018 к 2017 | D20: =D14/D18*100 -> 100.2 | E20: =E14/E18*100 -> 100.2 | F20: 103.7 | H20: 100.6 | I20: 122.8 | J20: 218.6 | K20: 121
K21: =J9 -> 0
